Cogmind - Beta 16.1 @@@ ROGUE MODE // 2026.03.30 @ 19:54:33 Player: konomiyu Result: Destroyed by A2-MOS(R) with Subdweller Machine Gun Performance ------------- Evolutions (0) 0 Regions Visited (2) 400 Robots Destroyed (39) 195 Value Destroyed (638) 638 Prototype IDs (3) 60 Alien Tech Used (0) 0 Bonus (0) 0 TOTAL SCORE: 1293 Bonus ------- None Cogmind --------- Core Integrity 0/250 Matter 6/300 Energy 199/200 System Corruption 2% Temperature Cool (0) Movement Rolling (120) Ox1 Location -10/Subcaves Parts ------- > --- POWER (1) -------- Subdweller Power Source > --- PROPULSION (2) --- Aluminum Leg Subdweller Monowheel > --- UTILITY (2) ------ Large Storage Unit Seismic Detector > --- WEAPON (2) ------- Subdweller Machine Gun > --- INVENTORY (15) --- Subdweller Power Source Subdweller Power Source Medium Storage Unit Subdweller Optics Hacking Suite Beam Cannon Heavy Assault Rifle Heavy Assault Rifle Subdweller Machine Gun Barrage Gun Rocket Launcher Rocket Launcher Datajack Makeshift Sword Peak State ------------ > --- POWER ------------ Subdweller Power Source > --- PROPULSION ------- Light Treads Light Treads > --- UTILITY ---------- Large Storage Unit Seismic Detector > --- WEAPON ----------- Heavy Assault Rifle Barrage Gun > --- INVENTORY -------- Subdweller Power Source Subdweller Power Source Light Treads Aluminum Leg Medium Storage Unit Subdweller Optics Hacking Suite Beam Cannon Heavy Assault Rifle Subdweller Machine Gun Rocket Launcher Rocket Launcher Datajack Mining Laser Flamer [Rating: 13] Favorites ----------- Power Ion Engine Engine Ion Engine Propulsion Light Treads Treads Light Treads Leg Aluminum Leg Wheel Subdweller Monowheel Hover Unit Hover Unit Utility Large Storage Unit Device Seismic Detector Storage Large Storage Unit Weapon Heavy Assault Rifle Energy Gun EM Pulse Gun Energy Cannon Beam Cannon Ballistic Gun Heavy Assault Rifle Launcher Rocket Launcher Special Weapon Mining Laser Special Melee Weapon Datajack Build | -11 -10 -10 ------- Run | Yrd Mat Sub Slots Evolved . | . . . Power . | . . . Propulsion . | . . . Utility . | . . . Weapon . | . . . Parts Attached 37 | 8 16 13 Power 6 | 1 1 4 Engine 6 | 1 1 4 Core . | . . . Reactor . | . . . Propulsion 7 | 2 2 3 Treads 4 | 2 2 . Leg 1 | . . 1 Wheel 1 | . . 1 Hover 1 | . . 1 Flight . | . . . Utility 6 | 3 3 . Device 3 | 2 1 . Storage 3 | 1 2 . Processor . | . . . Hackware . | . . . Protection . | . . . Artifact . | . . . Weapon 18 | 2 10 6 Energy Gun 1 | . 1 . Energy Cannon 1 | . 1 . Ballistic Gun 11 | 2 5 4 Ballistic Cannon . | . . . Launcher 2 | . 1 1 Special Weapon 2 | . 1 1 Impact Weapon . | . . . Slashing Weapon . | . . . Piercing Weapon . | . . . Special Melee Weapon 1 | . 1 . Unidentified Prototypes . | . . . Parts Lost 9 | . 2 7 Power 1 | . . 1 Propulsion 4 | . . 4 Utility 1 | . 1 . Weapon 3 | . 1 2 Highest Loss Streak 4 | . 1 4 To Critical Strikes . | . . . Average Backups 13 | 3 13 14 Power 1 | . 1 2 Propulsion 2 | 1 3 1 Utility 2 | . 2 2 Weapon 5 | 1 4 6 Tool/Special . | . . . Unused Backups 6 | . . 6 Power 2 | . . 2 Propulsion 1 | . . 1 Utility 2 | . . 2 Weapon 1 | . . 1 Tool/Special . | . . . Average Slot Usage (%) 95 | . 96 94 Engine 14 | . 14 14 Treads 24 | . 28 19 Leg 1 | . . 4 Wheel 1 | . . 3 Device 12 | . 10 14 Storage 14 | . 14 14 Energy Gun 1 | . 2 . Energy Cannon 5 | . 9 1 Ballistic Gun 15 | . 13 18 Special Weapon 1 | . 1 2 Peak Build Rating 13 | 7 11 13 Average Rating 9 | 5 8 11 On Entrance 6 | . 7 11 Avg Prop Armor Cover (%) 11 | . . 11 Naked Turns . | . . . Heaviest Build 34 | 14 33 34 Greatest Support 40 | 40 40 40 Greatest Overweight (x) 2 | 1 . 2 Average Overweight (x) . | . . . Largest Inventory Capacity 15 | 8 15 15 Average Capacity 14 | 7 14 15 Most Carried 15 | 5 15 15 Average Carried 13 | 4 13 14 Final Capacity 15 | 8 15 15 Final Carried 15 | 5 15 14 Class Distribution -------------------- 75% | Mutant 24% | Scavenger-Mutant Dominant Class ---------------- Mutant | -10/Materials Scavenger-Mutant | -10/Subcaves Resources | -11 -10 -10 ----------- Run | Yrd Mat Sub Matter Collected 1031 | 363 432 236 Remotely 178 | 178 . . Salvage Created 870 | 201 491 178 Parts 76 | 20 36 20 Haulers Intercepted 2 | . 2 . Recyclers Shooed 1 | 1 . . Parts Field Recycled . | . . . Retrieved Matter . | . . . Parts Self-Destructed 9 | . . 9 Prevented . | . . . Parts Restored . | . . . Kills | -11 -10 -10 ------- Run | Yrd Mat Sub Combat Hostiles Destroyed 18 | . 11 7 Guns 11 | . 4 7 Cannons 3 | . 3 . AOE 4 | . 4 . Classes Destroyed 10 | 2 6 2 Worker 2 | . 2 . Tunneler 9 | 7 2 . Hauler 2 | . 2 . Recycler 1 | 1 . . Operator 2 | . 2 . Turret 2 | . . 2 Watcher 3 | . 3 . Swarmer 10 | . 6 4 Grunt 5 | . 5 . Subdweller 3 | . . 3 Best Kill Streak 4 | 3 4 4 Combat Bots Only 4 | . 3 4 Max Kills in Single Turn 3 | 1 3 1 Gunslinging . | . . . Exploded 3 | . 3 . Melee . | . . . Uniques/NPCs Destroyed . | . . . Combat | -11 -10 -10 -------- Run | Yrd Mat Sub Hostile Shots Fired 167 | . 80 87 Missed 57 | . 26 31 Hits 110 | . 54 56 Projectile 110 | . 54 56 AOE 5 | . . 5 Critical Strikes 1 | . . 1 Damage Taken 1730 | . 800 930 Core 257 | . 103 154 Absorbed by Shields . | . . . Core Remaining (%) 100 | 100 . . Volleys Fired 138 | 21 84 33 Largest 2 | 2 2 2 Hottest 200 | 40 100 200 Shots Fired 245 | 42 143 60 Gun 155 | 42 75 38 Cannon 39 | . 36 3 Launcher 19 | . 11 8 Special 32 | . 21 11 Kinetic 142 | 42 62 38 Thermal 71 | . 57 14 Explosive 19 | . 11 8 Electromagnetic 13 | . 13 . Robot Hit Streak 13 | 6 11 13 Robot Miss Streak 5 | 4 5 4 Penetration Max . | . . . Secondary Targets 2 | . 1 1 Max Gunslinging Chain 1 | . 1 1 Shots Hit Robots 120 | 24 58 38 Core Hits 55 | 11 27 17 Critical Kills . | . . . Critical Parts Destroyed . | . . . Critical Strikes 1 | . . 1 Burn 1 | . . 1 Melee Attacks 3 | . 1 2 Impact . | . . . Slashing . | . . . Piercing . | . . . Sneak Attacks 1 | . 1 . Combat Hostiles . | . . . Follow-up Attacks . | . . . Damage Inflicted 2136 | 250 1189 697 Guns 1183 | 250 498 435 Cannons 351 | . 300 51 Explosions 567 | . 391 176 Melee . | . . . Ramming . | . . . Kinetic 1105 | 250 420 435 Thermal 386 | . 300 86 Explosive 567 | . 391 176 Electromagnetic 78 | . 78 . Impact . | . . . Slashing . | . . . Piercing . | . . . Highest Corruption 2 | . 2 2 Average Corruption 2 | . 2 2 Corruption Purged . | . . . Corruption Blocked . | . . . Effects 26 | . 7 19 Message Errors 5 | . 1 4 Matter Fused 6 | . 2 4 Heat Flow Errors 2 | . 2 . Energy Discharges 6 | . 1 5 Data Loss (minor) 2 | . 1 1 Data Loss (major) 1 | . . 1 Misfires 4 | . . 4 Overload Shots . | . . . Overflow Damage 38 | . 35 3 Projectiles . | . . . Explosions 38 | . 35 3 Melee . | . . . Knockbacks . | . . . Impact . | . . . Kinetic . | . . . Secondary . | . . . Self-Inflicted Damage 42 | . 18 24 Shots 2 | . 1 1 Rammed . | . . . Targets Rammed . | . . . Kicked . | . . . Crushed . | . . . Highest Temperature 285 | . 285 12 Average Temperature 74 | . 74 12 Received Heat Transfer 243 | . 135 108 Effects 1 | . 1 . Energy Bleed 1 | . 1 . Siege Activations . | . . . Martial Activations . | . . . Shielding Activations . | . . . Robots Disrupted . | . . . Combat Hostiles . | . . . Robots Corrupted . | . . . Combat Hostiles . | . . . Parts Fried . | . . . Impact Corruptions . | . . . Robots Melted . | . . . Combat Hostiles . | . . . Parts Melted 1 | . 1 . Heat Transferred 1030 | . 629 401 Parts Sabotaged . | . . . Parts Stolen . | . . . Parts Stripped . | . . . Power Chain Reactions . | . . . Alert | -11 -10 -10 ------- Run | Yrd Mat Sub Maximum Alert Level . | . . . Low Security (%) 100 | 100 100 . Level 1 . | . . . Level 2 . | . . . Level 3 . | . . . Level 4 . | . . . Level 5 . | . . . High Security . | . . . Max Security . | . . . Peak Influence 193 | 15 193 . Initial 3 | . 3 . Average 64 | 1 71 . Influence Increases 696 | 40 461 195 Destroy 0b10 Robot/C 340 | . 220 120 Destroy 0b10 Robot/NC 95 | 40 55 . Destroy Leader 50 | . 50 . Successful Hack 12 | . 12 . Disable Machine 30 | . 30 . Destroy Structure 64 | . 64 . Partial Spotted 15 | . 15 . Lose Combat Pursuer 90 | . 15 75 Influence Decreases 696 | 35 417 244 Entered New Map 27 | . 2 25 Time Decay 639 | 35 395 209 Lost Part 30 | . 20 10 Squads Dispatched 1 | . 1 . Investigation . | . . . Extermination . | . . . Reinforcement 1 | . 1 . Assault . | . . . Garrison . | . . . Intercept . | . . . Searches Triggered . | . . . Construction Impeded . | . . . Haulers Reinforced . | . . . Active Scanning Responses . | . . . Cargo Convoy Interrupts . | . . . Stealth | -11 -10 -10 --------- Run | Yrd Mat Sub Distress Signals 2 | . 2 . Communications Jammed . | . . . Distress Signals . | . . . Times Spotted 33 | . 16 17 Peak Tracking Total 6 | . 4 6 Tactical Retreats 4 | . 1 3 Traps | -11 -10 -10 ------- Run | Yrd Mat Sub Traps Triggered . | . . . Indirectly . | . . . Trap Hack Attempts . | . . . Triggered . | . . . Disarmed . | . . . Reprogrammed . | . . . Reused . | . . . Traps Extracted . | . . . Installed . | . . . Triggered . | . . . Machines | -11 -10 -10 ---------- Run | Yrd Mat Sub Machines Disabled 6 | . 2 4 Max in Single Turn 3 | . 2 3 Machines Repaired . | . . . Machines Dismantled . | . . . Machines Sabotaged . | . . . Overloaded Fab Kills . | . . . Hacking | -11 -10 -10 --------- Run | Yrd Mat Sub Machines Accessed 6 | . 6 . Terminals 6 | . 6 . Fabricators . | . . . Repair Stations . | . . . Recycling Units . | . . . Scanalyzers . | . . . Garrison Access . | . . . Total Hacks 19 | . 19 . Successful 7 | . 7 . Failed 12 | . 12 . Catastrophic 2 | . 2 . Database Lockouts . | . . . Manual 9 | . 9 . Terminals 19 | . 19 . Fabricators . | . . . Repair Stations . | . . . Recycling Units . | . . . Scanalyzers . | . . . Garrison Access . | . . . Terminal Hacks 6 | . 6 . Robot Analysis 1 | . 1 . Prototype ID Bank 2 | . 2 . Terminal Index 1 | . 1 . Dispatch Records 1 | . 1 . Registered Components 1 | . 1 . Fabricator Hacks . | . . . Repair Station Hacks . | . . . Recycling Unit Hacks . | . . . Scanalyzer . | . . . Garrison Access Hacks . | . . . Unauthorized Hacks 1 | . 1 . Terminals 1 | . 1 . Operators 1 | . 1 . Fabricators . | . . . Repair Stations . | . . . Recycling Units . | . . . Scanalyzers . | . . . Garrison Access . | . . . Data Cores Recovered 1 | . 1 . Used 1 | . 1 . Hacking Detections 4 | . 4 . Full Trace Events . | . . . Feedback Events . | . . . Feedback Blocked . | . . . Robot Schematics Acquired . | . . . Robots Built . | . . . Authchips . | . . . Time . | . . . Total Robot Build Rating . | . . . Part Schematics Acquired . | . . . Parts Built . | . . . Authchips . | . . . Time . | . . . Total Part Build Rating . | . . . Part Studies Acquired . | . . . Parts Repaired . | . . . Time . | . . . Parts Recycled . | . . . Recycled Matter . | . . . Retrieved Matter . | . . . Retrieved Components . | . . . Parts Scanalyzed . | . . . Part Schematics Acquired . | . . . Parts Damaged . | . . . Bothacking | -11 -10 -10 ------------ Run | Yrd Mat Sub Used RIF Installer . | . . . Robots Hacked 2 | . 1 1 Non-combat 1 | . 1 . Combat 1 | . . 1 Robot Hacks Applied 2 | . 1 1 parse_system 1 | . . 1 no_distress 1 | . 1 . Relay Couplers Released . | . . . Fabnet Peak Effective % . | . . . Robots Rewired . | . . . Allies Hacked . | . . . Hacks Repelled . | . . . Allies | -11 -10 -10 -------- Run | Yrd Mat Sub Total Allies . | . . . Largest Group . | . . . Highest-Rated Group . | . . . Highest-Rated Ally . | . . . Total Orders . | . . . Ally Attacks . | . . . Total Damage . | . . . Kills . | . . . Allies Corrupted . | . . . Allies Melted . | . . . Intel | -11 -10 -10 ------- Run | Yrd Mat Sub Active Infowar (turns) 2940 | 6 1359 1575 Seismic 2940 | 6 1359 1575 Robot Analysis Total 1 | . 1 . Derelict Logs Recovered 2 | . . 2 Drone Launches . | . . . Drone Recoveries . | . . . Exploration | -11 -10 -10 ------------- Run | Yrd Mat Sub Turns Passed 3646 | 220 1851 1575 Spaces Moved 1866 | 84 920 862 Core 12 | 12 . . Treads 1524 | 72 920 532 Legs 45 | . . 45 Wheels 285 | . . 285 Hover . | . . . Flight . | . . . Fastest Speed 50 | 50 160 120 Average Speed 155 | 150 160 151 Slowest Speed 260 | 160 160 260 Overloaded Moves . | . . . Propulsion Burnouts . | . . . Robots Hopped . | . . . Potential Cave-ins 13 | . 13 . Cave-ins Triggered 1 | . 1 . Exploration Rate (%) 46 | 4 90 45 Regions Visited 2 Branch Regions 1 Pre-discovered Areas 2 | . . 2 Known Exits Taken . | . . . Unknown Exits Taken 2 | 1 1 . Scrap Searched . | . . . Spaces Dug 21 | . 21 . Terrain Destroyed 113 | . 87 26 Melee . | . . . Projectile 21 | . 21 . AOE 92 | . 66 26 Terrain Rammed . | . . . Walls Destroyed . | . . . Machines Disabled . | . . . Actions | -11 -10 -10 --------- Run | Yrd Mat Sub Total 2297 | 137 1110 1050 Wait 193 | 19 70 104 Move 1864 | 83 919 862 Hop . | . . . Pick Up 24 | 6 9 9 Fast Attach 11 | 6 1 4 Attach 5 | 1 1 3 Detach 1 | . . 1 Swap 41 | 1 20 20 Drop 17 | . 5 12 Fire 138 | 21 84 33 Melee 3 | . 1 2 Ram . | . . . Kick . | . . . Crush . | . . . Escape Stasis . | . . . Rewire . | . . . Trap . | . . . Miscellaneous . | . . . Route ------- -11/Scrapyard -10/Materials (discovered 5 exits: [*Mat x2] / [*Min x2] / [*Sub]) -10/Subcaves (discovered 1 exit: [*Rec]) History --------- Turn | Location | Event 2 | -11/Scrapyard | Met Revision 17 18 | -11/Scrapyard | Discovered new exit (range 14) 221 | -11/Scrapyard | Entered Materials 313 | -10/Materials | Build established: Mutant 448 | -10/Materials | Discovered new exit (range 7) 1393 | -10/Materials | Crushed by falling debris 1427 | -10/Materials | Discovered new exit (range 4) 1544 | -10/Materials | Discovered new exit (range 6) 1853 | -10/Materials | Discovered new exit (range 15) 2054 | -10/Materials | Discovered new exit (range 12) 2072 | -10/Materials | Entered Subcaves 2258 | -10/Subcaves | Learned location of Zion (-7) 2258 | -10/Subcaves | Met a Zionite searching for "candidates" 2345 | -10/Subcaves | Discovered new exit (range 12) 2440 | -10/Subcaves | Core integrity fell below 50% 2775 | -10/Subcaves | Build established: Scavenger-Mutant 3104 | -10/Subcaves | Build established: Mutant 3168 | -10/Subcaves | Core integrity fell below 20% 3198 | -10/Subcaves | Lost 4 parts (2n2w) 3411 | -10/Subcaves | Shifting Twisted Machinery released Mak. Sword 3417 | -10/Subcaves | Shifting Twisted Machinery released Battle Rifle 3585 | -10/Subcaves | Build established: Scavenger-Mutant 3647 | -10/Subcaves | Destroyed by A2-MOS(R) with Subdweller Machine Gun Last Messages --------------- 03172_ Acquired Hover Unit. 03229_ Subatomizers dissect the Sub. Optics, destroying it. 03285_ Acquired Sub. Machine Gun. 03289_ Acquired Sub. Monowheel. 03307_ System corrupted: Substantial component data lost. 03334_ Sub. Power Source shoots sparks and powers down. Mak. Sword falls loose from the Twisted Machinery. Battle Rifle falls loose from the Twisted Machinery. 03419_ Acquired Mak. Sword. 03457_ System corrupted: Energy discharge (-58). 03474_ System corrupted: Energy discharge (-44). 03555_ 4W-VLD(u) builds Twisted Machinery. 03629_ VN ZUQGQLHBH9CN8#GDWXRD THQX> H 03634_ 4W-VLD(u) builds Twisted Machinery. Map ----- +----------------------------------------------------+ | ??????????????????????# ## # | | ??????????????????????## ## | | ???????????????????????# ### | | ???????????????????????## ##### #?### | | ????????????????????????# ##??## ##???? | | ????????????????????????## ##### ##????? | | ?????????????????????????### ####### | | ???????????????????????????# # | | ???????????????????????????## ## | | ????????????????????????????##### ## | | ????????????????????????????????# ## # ## | | ????????????????????????????????# | | ???????????????????????????????## ## | | ??????????????????????????????## # # | | ???????????????????????###????# ### ## ## | | ???????????????????????# ###?## #### # ## | | ??????????????????????## ### ###" ### # | | ?????????????????????## #### #?####### | | ?????????????????????# #### ##??????# " | | ???????????????????????# ##???????## """ | | ?????????????????????### ######????##"" | | ?????????????????????# # # ##?????" | | ?###???????????####??# #?????## | | ?# ####????????# ### #???????# | | ?# #????????# ## # # ##???????? | | ## #????????### @ ## ### #????????? | | # #??########?#### # #### ##???????? | | #" "#??# # #### ####### "###?????? | | """ #### ##???# ""###" ?? | | " "" " !& ###### """ "#?? | | "" " " " ### & #?## """ "?? | | """"" #" "R ###?#" && ## #?# ### "" ? | | # ######?# =& ## ### ##?? #?? | | ##?##"### ### ####?####?? | | " ## ####" ## #?# ##?????? | | "" ## """"" ### #?# #?????? | | "#### """" #??# ##?# #?????? | | #??## ## """# ##??? ##?## ##????? | | #???###### ######????####??# ###??? | | # ##????????###???????????????# ## #??? | | #######???????????????????????????#### ### #??? | | ?????????????????????????????????????# ##?## #??? | | ?????????????????????????????????????# ##???# #??? | | ?????????????????????????????????????# #????# #??? | | #?????????????????????????????####?### #????# #??? | | ##????????????????????????????# ## ##??## #??? | | #????????????????????????????# #### #??? | | #????????????????????????????## # #??? | | #?????????????????????????????## ## ####??? | | ##?????????????????????????????## ##### #?????? | +----------------------------------------------------+ Best States ------------- Heat Dissipation 25 Energy Generation 15 Energy Capacity 250 Matter Stores 300 Matter Capacity 300 Sight Range 16 Terrain Scan Density 10 Evasion (%) 40 Recoil Reduction 2 Item Schematics ----------------- None Robot Schematics ------------------ None Fabricated ------------ Nothing Repaired ---------- Nothing Studied --------- None Alien Tech Used ----------------- None Achievements -------------- You Again Challenges ------------ None Game ------ Seed SiegeAuthchipCalibrator Manual? 0 Play Time 00:30:26 Cumulative 32.5 hours Start 2026.03.30 @ 19:25:09 End 2026.03.30 @ 19:54:33 Sessions 1 Manual Loads 0 Difficulty Rogue Special Mode None Game No. 37 Rogue 37 Adventurer 0 Explorer 0 Win Type - Total 0 Types 0/0/0/0/0/0/0/0/0/0 Lore% 29 Gallery% 23 Achievement% 18 Wizard Run 0 Options --------- Layout 1 ASCII 0 Keyboard 1 Movement Vi Keybinds 0 Fullscreen 2 Font 24/Smallcaps Map View 50x35 Zoom Use 0% Tactical HUD 1 Map Filters NONE Filters NONE Steam 1 RUN: 41c16201-6a5b-4478-b044-fd64f06201c8